fUST/lending_fUST_20240905
["ID","MTS","AMOUNT","RATE_DAILY","PERIOD"]
[337181265,1725492644904,-500.0,0.0002239,2]
[337181267,1725492644917,-500.0,0.0002239,2]
[337181269,1725492644927,-500.0,0.0002239,2]
[337181271,1725492644938,-500.0,0.0002239,2]
[337181273,1725492644948,-500.0,0.0002239,2]
[337181275,1725492644959,-500.0,0.0002239,2]
[337181278,1725492644969,-500.0,0.0002239,2]
[337181280,1725492644980,-626.5568932,0.0002239,2]
[337181282,1725492644991,-500.0,0.0002239,2]
[337181284,1725492645001,-500.0,0.0002239,2]
[337181286,1725492645013,-500.0,0.0002239,2]
[337181289,1725492645025,-444.48469602,0.0002239,2]
[337181291,1725492645037,-150.112233,0.000224,5]
[337181293,1725492645048,-150.112233,0.000224,3]
[337181295,1725492645061,-150.112233,0.000224,2]
[337181298,1725492645074,-308.0969551,0.00022401,2]
[337181300,1725492645085,-510.35364077,0.00022401,2]
[337181303,1725492645098,-500.0,0.00022401,2]
[337181305,1725492645109,-500.0,0.00022401,2]
[337181307,1725492645119,-500.0,0.00022401,2]
[337181309,1725492645129,-500.0,0.00022401,2]
[337181311,1725492645140,-651.11,0.00022401,2]
[337181313,1725492645150,-153.35644694,0.00022401,2]
[337181316,1725492645161,-500.0,0.00022401,2]
[337181318,1725492645171,-500.0,0.00022401,2]
[337181320,1725492645183,-500.0,0.00022401,2]
[337181322,1725492645194,-500.0,0.00022401,2]
[337181324,1725492645205,-342.65135497,0.00022401,2]
[337181327,1725492645217,-839.99,0.00022401,2]
[337181329,1725492645227,-500.0,0.00022401,2]
[337181331,1725492645237,-500.0,0.00022401,2]
[337181333,1725492645248,-545.86052914,0.00022401,2]
[337181335,1725492645259,-500.0,0.00022401,2]
[337181337,1725492645269,-500.0,0.00022401,2]
[337181339,1725492645280,-500.0,0.00022401,2]
[337181342,1725492645290,-500.0,0.00022401,2]
[337181344,1725492645301,-500.0,0.00022401,2]
[337181346,1725492645313,-500.0,0.00022401,2]
[337181348,1725492645323,-500.0,0.00022401,2]
[337181350,1725492645333,-500.0,0.00022401,2]
[337181353,1725492645344,-500.0,0.00022401,2]
[337181355,1725492645354,-557.36,0.00022401,2]
[337181357,1725492645364,-502.31174423,0.00022401,2]
[337181359,1725492645375,-541.66266447,0.00022401,2]
[337181361,1725492645386,-500.0,0.00022401,2]
[337181363,1725492645397,-500.0,0.00022401,2]
[337181366,1725492645407,-500.0,0.00022401,2]
[337181368,1725492645418,-500.0,0.00022401,2]
[337181370,1725492645428,-500.0,0.00022401,2]
[337181372,1725492645439,-500.0,0.00022401,2]
[337181374,1725492645450,-500.0,0.00022401,2]
[337181377,1725492645460,-542.57796023,0.00022401,2]
[337181379,1725492645471,-519.41851865,0.00022401,2]
[337181381,1725492645481,-500.0,0.00022401,2]
[337181383,1725492645491,-500.0,0.00022401,2]
[337181385,1725492645502,-500.0,0.00022401,2]
[337181387,1725492645512,-500.0,0.00022401,2]
[337181389,1725492645523,-500.0,0.00022401,2]
[337181392,1725492645533,-500.0,0.00022401,2]
[337181394,1725492645544,-500.0,0.00022401,2]
[337181396,1725492645555,-500.0,0.00022401,2]
[337181398,1725492645567,-500.0,0.00022401,2]
[337181400,1725492645579,-500.0,0.00022401,2]
[337181403,1725492645590,-500.0,0.00022401,2]
[337181405,1725492645601,-500.0,0.00022401,2]
[337181406,1725492645611,-500.0,0.00022401,2]
[337181408,1725492645621,-500.0,0.00022401,2]
[337181411,1725492645631,-379.01281713,0.00022401,2]
[337181413,1725492645641,-500.0,0.00022401,2]
[337181415,1725492645652,-667.06,0.00022401,2]
[337181417,1725492645663,-500.0,0.00022401,2]
[337181419,1725492645673,-500.0,0.00022401,2]
[337181421,1725492645683,-500.0,0.00022401,2]
[337181423,1725492645694,-500.0,0.00022401,2]
[337181425,1725492645705,-500.0,0.00022401,2]
[337181428,1725492645716,-1823.83,0.00022401,2]
[337181430,1725492645726,-500.0,0.00022401,2]
[337181432,1725492645737,-500.0,0.00022401,2]
[337181434,1725492645748,-500.0,0.00022401,2]
[337181436,1725492645758,-395.13540468,0.00022401,2]
[337181438,1725492645769,-444.86523842,0.00022401,2]
[337181441,1725492645780,-777.94,0.00022401,2]
[337181443,1725492645792,-500.0,0.00022401,2]
[337181445,1725492645803,-500.0,0.00022401,2]
[337181447,1725492645814,-502.68432073,0.00022401,2]
[337181449,1725492645825,-517.15045269,0.00022401,2]
[337181452,1725492645836,-500.0,0.00022401,2]
[337181454,1725492645847,-500.0,0.00022401,2]
[337181456,1725492645858,-153.87761773,0.00022401,2]
[337181458,1725492645869,-500.0,0.00022401,2]
[337181460,1725492645880,-500.0,0.00022401,2]
[337181462,1725492645891,-500.0,0.00022401,2]
[337181464,1725492645902,-500.0,0.00022401,2]
[337181467,1725492645912,-815.35,0.00022401,2]
[337181469,1725492645926,-500.0,0.00022401,2]
[337181471,1725492645937,-500.0,0.00022401,2]
[337181473,1725492645947,-208.70691742,0.00022401,2]
[337181475,1725492645959,-500.0,0.00022401,2]
[337181477,1725492645969,-291.42441964,0.00022401,2]
[337181479,1725492645979,-500.0,0.00022401,2]
[337181481,1725492645989,-251.81603334,0.00022401,2]
[337181606,1725492647161,-500.0,0.00021991,2]
[337181608,1725492647171,-500.0,0.00022169,2]
[337181610,1725492647180,-500.0,0.0002217,2]
[337181612,1725492647189,-500.0,0.000222,2]
[337181614,1725492647199,-523.04,0.0002228,2]
[337181616,1725492647208,-380.58053117,0.0002228,2]
[337184997,1725492710364,500.0,0.00027,120]
[337185000,1725492749870,800.0,0.00027,120]
[337185016,1725493044788,1500.0,0.00025,60]
[337185021,1725493401871,5005.0,0.000201,10]
[337185024,1725493788325,201.4213272,0.00019531,2]
[337185050,1725493832275,-300.0,0.00020229,2]
[337185051,1725493832286,-2671.90611369,0.0002023,2]
[337185099,1725493838553,-319.92838575,0.0002023,2]
[337185102,1725493838568,-9772.45856423,0.0002023,2]
[337185104,1725493838578,-24900.0,0.0002033,2]
[337185106,1725493838587,-4588.0,0.0002047,2]
[337185108,1725493838596,-178.220851,0.00020471,2]
[337185110,1725493838606,-250.0,0.00020664,2]
[337185112,1725493838615,-250.0,0.00020721,2]
[337185114,1725493838624,-250.0,0.00020778,2]
[337185116,1725493838634,-250.0,0.00020834,2]
[337185118,1725493838644,-250.0,0.00020891,2]
[337185120,1725493838654,-250.0,0.00020948,2]
[337185121,1725493838663,-250.0,0.00021004,2]
[337185123,1725493838672,-250.0,0.00021061,2]
[337185124,1725493838681,-206.37053747,0.0002109,2]
[337185125,1725493838691,-250.0,0.00021118,2]
[337185126,1725493838700,-250.0,0.00021174,2]
[337185128,1725493838710,-250.0,0.00021231,2]
[337185132,1725493838723,-250.0,0.00021288,2]
[337185135,1725493838733,-250.0,0.00021344,2]
[337185138,1725493838743,-250.0,0.00021401,2]
[337185140,1725493838752,-250.0,0.00021458,2]
[337185142,1725493838762,-250.0,0.00021515,2]
[337185144,1725493838772,-250.0,0.00021571,2]
[337185146,1725493838783,-5559.28678273,0.00021592,2]
[337185147,1725493838794,-250.0,0.00021628,2]
[337185148,1725493838806,-250.0,0.00021685,2]
[337185150,1725493838816,-210.68631477,0.000217,2]
[337185152,1725493838827,-210.68631477,0.000217,2]
[337185154,1725493838837,-5559.28678273,0.00021706,2]
[337185156,1725493838848,-825.31,0.0002173,3]
[337185158,1725493838860,-412.65,0.0002173,3]
[337185159,1725493838870,-206.33,0.0002173,3]
[337185160,1725493838881,-619.01,0.0002173,3]
[337185161,1725493838890,-500.0,0.00021739,2]
[337185162,1725493838900,-309.72313336,0.00021739,2]
[337185163,1725493838910,-108928.26315719,0.0002174,2]
[337185164,1725493838920,-250.0,0.00021741,2]
[337185165,1725493838929,-254.13284002,0.00021791,2]
[337185166,1725493838939,-7558.6211698,0.0002186,2]
[337185167,1725493838949,-7558.6211698,0.0002186,2]
[337185168,1725493838958,-7558.6211698,0.00021861,2]
[337185169,1725493838968,-7558.6211698,0.00021861,2]
[337185170,1725493838978,-7558.6211698,0.00021861,2]
[337185171,1725493838988,-500.0,0.00021917,2]
[337185172,1725493838997,-500.0,0.00021917,2]
[337185173,1725493839007,-500.0,0.00021917,2]
[337185174,1725493839016,-500.0,0.00021917,2]
[337185175,1725493839026,-500.0,0.00021917,2]
[337185176,1725493839035,-500.0,0.00021917,2]
[337185177,1725493839044,-500.0,0.00021917,2]
[337185178,1725493839054,-500.0,0.00021917,2]
[337185179,1725493839064,-441.87857141,0.00021917,2]
[337185180,1725493839073,-500.0,0.00021917,2]
[337185181,1725493839082,-500.0,0.00021917,2]
[337185182,1725493839091,-500.0,0.00021917,2]
[337185183,1725493839101,-474.40963994,0.00021917,2]
[337185184,1725493839111,-500.0,0.00021917,2]
[337185185,1725493839120,-500.0,0.00021917,2]
[337185186,1725493839130,-500.0,0.00021917,2]
[337185187,1725493839139,-500.0,0.00021917,2]
[337185188,1725493839149,-500.0,0.00021917,2]
[337185189,1725493839159,-500.0,0.00021917,2]
[337185190,1725493839169,-500.0,0.00021917,2]
[337185191,1725493839178,-500.0,0.00021917,2]
[337185192,1725493839187,-500.0,0.00021917,2]
[337185193,1725493839497,-500.0,0.00021917,2]
[337185194,1725493839508,-608.85,0.00021917,2]
[337185195,1725493839517,-500.0,0.00021917,2]
[337185196,1725493839527,-500.0,0.00021917,2]
[337185197,1725493839537,-500.0,0.00021917,2]
[337185198,1725493839547,-500.0,0.00021917,2]
[337185199,1725493839557,-500.0,0.00021917,2]
[337185200,1725493839569,-500.0,0.00021917,2]
[337185201,1725493839579,-500.0,0.00021917,2]
[337185202,1725493839591,-500.0,0.00021917,2]
[337185203,1725493839603,-7322.21,0.00021917,2]
[337185204,1725493839616,-500.0,0.00021917,2]
[337185205,1725493839626,-2876.25,0.00021917,2]
[337185206,1725493839637,-500.0,0.00021917,2]
[337185207,1725493839650,-500.0,0.00021917,2]
[337185208,1725493839659,-500.0,0.00021917,2]
[337185209,1725493839669,-1054.86,0.00021917,2]
[337185210,1725493839678,-933.67,0.00021917,2]
[337185211,1725493839688,-500.0,0.00021917,2]
[337185212,1725493839697,-1225.08,0.00021917,2]
[337185213,1725493839706,-500.0,0.00021917,2]
[337185214,1725493839715,-507.38018017,0.00021917,2]
[337185215,1725493839726,-888.13,0.00021917,2]
[337185216,1725493839736,-200.0,0.00021917,2]
[337185217,1725493839746,-500.0,0.00021917,2]
[337185218,1725493839756,-500.0,0.00021917,2]
[337185219,1725493839765,-500.0,0.00021917,2]
[337185220,1725493839774,-500.0,0.00021917,2]
[337185221,1725493839784,-500.0,0.00021917,2]
[337185222,1725493839793,-5488.55,0.00021917,2]
[337185223,1725493839803,-500.0,0.00021917,2]
[337185224,1725493839812,-500.0,0.00021917,2]
[337185226,1725493839822,-636.83,0.00021917,2]
[337185227,1725493839831,-500.0,0.00021917,2]
[337185228,1725493839840,-1231.97,0.00021917,2]
[337185229,1725493839850,-585.69664149,0.00021917,2]
[337185230,1725493839860,-589.45849333,0.00021917,2]
[337185231,1725493839870,-500.0,0.00021917,2]
[337185232,1725493839879,-1327.44,0.00021917,2]
[337185233,1725493839888,-502.90685513,0.00021917,2]
[337185234,1725493839898,-500.0,0.00021917,2]
[337185235,1725493839907,-500.0,0.00021917,2]
[337185236,1725493839916,-7402.56,0.00021917,2]
[337185237,1725493839926,-500.0,0.00021917,2]
[337185238,1725493839935,-502.2038203,0.00021917,2]
[337185239,1725493839944,-500.0,0.00021917,2]
[337185240,1725493839953,-500.0,0.00021917,2]
[337185241,1725493839963,-6637.36,0.00021917,2]
[337185242,1725493839972,-500.0,0.00021917,2]
[337185243,1725493839982,-3598.01,0.00021917,2]
[337185244,1725493839991,-1458.74,0.00021917,2]
[337185245,1725493840000,-917.77,0.00021917,2]
[337185246,1725493840011,-500.0,0.00021917,2]
[337185247,1725493840020,-500.0,0.00021917,2]
[337185248,1725493840029,-500.0,0.00021917,2]
[337185249,1725493840039,-500.0,0.00021917,2]
[337185250,1725493840048,-1956.16,0.00021917,2]
[337185251,1725493840059,-5559.28678273,0.00021948,2]
[337185252,1725493840068,-196.39957798,0.00021959,2]
[337185253,1725493840079,-500.0,0.00021959,2]
[337185254,1725493840091,-271.71483328,0.00021959,2]
[337185255,1725493840102,-500.0,0.00021959,2]
[337185256,1725493840112,-500.0,0.00021959,2]
[337185257,1725493840122,-200.0,0.00021959,2]
[337185258,1725493840133,-500.0,0.00021959,2]
[337185259,1725493840143,-500.0,0.00021959,2]
[337185260,1725493840153,-500.0,0.00021959,2]
[337185261,1725493840163,-528.08258609,0.00021959,2]
[337185262,1725493840172,-500.0,0.00021959,2]
[337185263,1725493840181,-500.0,0.00021959,2]
[337185264,1725493840191,-500.0,0.00021959,2]
[337185265,1725493840201,-500.0,0.00021959,2]
[337185266,1725493840210,-623.0221995,0.00021959,2]
[337185267,1725493840220,-500.0,0.00021959,2]
[337185268,1725493840229,-500.0,0.00021959,2]
[337185269,1725493840238,-500.0,0.00021959,2]
[337185270,1725493840247,-500.0,0.00021959,2]
[337185272,1725493840259,-500.0,0.00021959,2]
[337185274,1725493840269,-500.0,0.00021959,2]
[337185276,1725493840279,-500.0,0.00021959,2]
[337185278,1725493840288,-500.0,0.00021959,2]
[337185280,1725493840298,-500.0,0.00021959,2]
[337185282,1725493840307,-500.0,0.00021959,2]
[337185284,1725493840317,-500.0,0.00021959,2]
[337185286,1725493840326,-500.0,0.00021959,2]
[337185288,1725493840336,-500.0,0.00021959,2]
[337185290,1725493840345,-166676.66688927,0.0002196,3]
[337185292,1725493840358,-795.73230188,0.0002196,3]
[337185323,1725493840627,-470.49417695,0.00021959,2]
[337185325,1725493840640,-29.50582305,0.00021959,2]
[337185327,1725493840650,-176.1646189,0.00021959,2]
[337185329,1725493840660,-38267.67021585,0.0002196,3]
[337185331,1725493840670,-48899.3510721,0.0002196,2]
[337185333,1725493840681,-4393.17662247,0.0002196,2]
[337185580,1725493843281,-500.0,0.00021917,2]
[337185582,1725493843290,-88452.36696944,0.0002196,2]
[337185907,1725493846378,-500.0,0.00021917,2]
[337185909,1725493846387,-954.78751333,0.0002196,2]
[337185911,1725493846398,-101927.9922478,0.0002196,2]
[337192512,1725494815131,-152.77813488,0.00020518,2]
[337192530,1725495038602,-300.0,0.0002014,2]
[337192531,1725495038613,-16911.7890801,0.00020141,2]
[337192533,1725495038623,-7.82104812,0.00020518,2]
[337192534,1725495038632,-192.41243596,0.00020567,2]
[337192536,1725495038642,-935.94263174,0.00020567,2]
[337192537,1725495038651,-160.599183,0.00020652,2]
[337192538,1725495038661,-164.8443062,0.00020667,2]
[337192540,1725495038670,-160.599183,0.00020786,2]
[337192541,1725495038679,-160.599183,0.00020919,2]
[337192543,1725495038689,-396.3909483,0.00021041,2]
[337192544,1725495038699,-160.599183,0.00021053,2]
[337192545,1725495038708,-1667.452625,0.00021175,6]
[337192546,1725495038718,-160.599183,0.00021186,2]
[337192547,1725495038728,-153.0,0.0002126,2]
[337192548,1725495038738,-153.0,0.0002126,2]
[337192549,1725495038747,-153.0,0.0002126,2]
[337192550,1725495038757,-153.0,0.0002126,2]
[337192551,1725495038767,-153.0,0.0002126,2]
[337192552,1725495038776,-153.0,0.0002126,2]
[337192553,1725495038785,-153.0,0.0002126,2]
[337192554,1725495038795,-208.0725932,0.0002126,2]
[337192555,1725495038804,-153.0,0.0002126,2]
[337192556,1725495038914,-208.0725932,0.0002126,2]
[337192557,1725495038924,-208.0725932,0.0002126,2]
[337192558,1725495038934,-153.0,0.0002126,2]
[337192559,1725495038943,-208.0725932,0.0002126,2]
[337192560,1725495038953,-208.0725932,0.0002126,2]
[337192561,1725495038963,-153.0,0.00021278,2]
[337192562,1725495038972,-160.599183,0.0002132,2]
[337192563,1725495038982,-442.5469175,0.000214,2]
[337192564,1725495038991,-153.0,0.000214,2]
[337192565,1725495039001,-153.0,0.000214,2]
[337192566,1725495039010,-160.599183,0.00021454,2]
[337192567,1725495039019,-160.599183,0.00021587,2]
[337192568,1725495039029,-177.3906194,0.00021644,2]
[337192569,1725495039038,-153.0,0.00021644,2]
[337192570,1725495039047,-153.0,0.00021644,2]
[337192571,1725495039057,-6540.7176748,0.000217,2]
[337192572,1725495039066,-5559.28678273,0.00021768,2]
[337192573,1725495039075,-153.0,0.000218,2]
[337192574,1725495039084,-153.0,0.000218,2]
[337192575,1725495039093,-150.0,0.00021835,2]
[337192576,1725495039103,-235.31894232,0.00021873,2]
[337192577,1725495039111,-500.0,0.00021873,2]
[337192578,1725495039120,-500.0,0.00021873,2]
[337192579,1725495039129,-500.0,0.00021873,2]
[337192580,1725495039139,-297.96356225,0.00021873,2]
[337192581,1725495039148,-156.8571277,0.00021873,2]
[337192582,1725495039158,-500.0,0.00021886,2]
[337192583,1725495039167,-500.0,0.00021886,2]
[337192584,1725495039176,-196.39957798,0.00021886,2]
[337192585,1725495039185,-528.08258609,0.00021886,2]
[337192586,1725495039195,-500.0,0.00021886,2]
[337192587,1725495039205,-271.71483328,0.00021886,2]
[337192588,1725495039214,-500.0,0.00021886,2]
[337192589,1725495039224,-500.0,0.00021886,2]
[337192590,1725495039234,-500.0,0.00021886,2]
[337192591,1725495039243,-500.0,0.00021886,2]
[337192592,1725495039252,-500.0,0.00021886,2]
[337192593,1725495039262,-323.0221995,0.00021886,2]
[337192594,1725495039271,-500.0,0.00021886,2]
[337192595,1725495039280,-500.0,0.00021886,2]
[337192596,1725495039290,-239759.27000573,0.00021887,3]
[337192599,1725495040632,-87343.18590685,0.00021887,3]
[337192617,1725495043410,-16.97534832,0.00021887,3]
[337192627,1725495043499,-88952.36696944,0.00021887,3]
[337192645,1725495208059,-9999.0,0.00021877,3]
[337192646,1725495248068,-401.19,0.00021856,3]
[337192647,1725495248091,-200.59,0.00021856,3]
[337192648,1725495248113,-601.81,0.00021856,3]
[337192649,1725495248139,-2196.41,0.00021877,3]
[337192747,1725496238774,-300.0,0.00020376,2]
[337192749,1725496238784,-28355.05643031,0.00020377,2]
[337192751,1725496238793,-178.220851,0.00020405,2]
[337192753,1725496238802,-12160.771809,0.0002128,2]
[337192755,1725496238812,-5723.12796545,0.00021646,2]
[337192757,1725496238821,-280.83,0.00021746,3]
[337192759,1725496238830,-842.5,0.00021746,3]
[337192762,1725496238840,-1000.0,0.00021756,2]
[337192764,1725496238849,-55555.0,0.00021756,3]
[337192766,1725496238858,-500.0,0.00021779,2]
[337192768,1725496238868,-500.0,0.00021779,2]
[337192770,1725496238877,-500.0,0.00021779,2]
[337192772,1725496238886,-500.0,0.00021779,2]
[337192774,1725496238896,-500.0,0.00021779,2]
[337192776,1725496238905,-500.0,0.00021779,2]
[337192778,1725496238915,-500.0,0.00021779,2]
[337192780,1725496238924,-500.0,0.00021779,2]
[337192782,1725496238934,-526.05964843,0.00021779,2]
[337192784,1725496238943,-500.0,0.00021779,2]
[337192786,1725496238953,-500.0,0.00021779,2]
[337192788,1725496238962,-500.0,0.00021779,2]
[337192790,1725496238971,-12160.771809,0.0002178,2]
[337192792,1725496238981,-208.0725932,0.000218,2]
[337192794,1725496238991,-208.0725932,0.000218,2]
[337192796,1725496239000,-208.0725932,0.000218,2]
[337192798,1725496239009,-208.0725932,0.000218,2]
[337192800,1725496239018,-208.0725932,0.000218,2]
[337192802,1725496239027,-208.0725932,0.000218,2]
[337192804,1725496239036,-184449.513348,0.00021807,3]
[337192806,1725496239046,-3000.0,0.00021817,2]
[337192808,1725496239055,-8997.30054969,0.00021817,2]
[337192810,1725496239064,-500.0,0.00021873,2]
[337192812,1725496239073,-500.0,0.00021896,2]
[337192814,1725496239083,-369.65781026,0.00021896,2]
[337192816,1725496239093,-540.2003833,0.00021896,2]
[337192818,1725496239102,-500.0,0.00021896,2]
[337192820,1725496239111,-500.0,0.00021896,2]
[337192822,1725496239121,-376.11553965,0.00021896,2]
[337192824,1725496239131,-500.0,0.00021896,2]
[337192826,1725496239140,-500.0,0.00021896,2]
[337192828,1725496239150,-500.0,0.00021896,2]
[337192830,1725496239159,-500.0,0.00021896,2]
[337192832,1725496239169,-202700.1314943,0.00021897,3]
[337193158,1725496243681,-1031.13,0.00021897,3]
[337193195,1725496328082,150.0,0.00027,120]
[337193197,1725496419779,10000.0,0.00027,120]
[337193198,1725496554351,24900.0,0.00020076,2]
[337193202,1725496854489,3000.0,0.00019862,2]
[337193203,1725496949215,5210.4795684,0.00019841,2]
[337193204,1725497014468,250.0,0.00019857,2]
[337193205,1725497058938,342.607928,0.00019867,2]
[337193207,1725497177334,24900.0,0.0001983,2]
[337193208,1725497238768,250.0,0.00020024,2]
[337193209,1725497238976,250.0,0.00020079,2]
[337193210,1725497255774,246.42451888,0.00020024,2]
[337193212,1725497326091,25000.0,0.0002099,5]
[337193213,1725497390352,-250.0,0.00020134,2]
[337193214,1725497390375,-250.0,0.00020189,2]
[337193215,1725497390398,-250.0,0.00020243,2]
[337193216,1725497390422,-250.0,0.00020298,2]
[337193217,1725497390445,-254.13284002,0.00020299,2]
[337193218,1725497390469,-250.0,0.00020353,2]
[337193219,1725497390492,-250.0,0.00020408,2]
[337193220,1725497390518,-250.0,0.00020463,2]
[337193221,1725497390541,-250.0,0.00020518,2]
[337193222,1725497390564,-250.0,0.00020573,2]
[337193223,1725497390588,-250.0,0.00020628,2]
[337193224,1725497390611,-250.0,0.00020683,2]
[337193225,1725497390634,-250.0,0.00020738,2]
[337193226,1725497390658,-250.0,0.00020792,2]
[337193227,1725497390682,-250.0,0.00020847,2]
[337193228,1725497390704,-300.0,0.00020879,2]
[337193229,1725497390727,-240.0,0.00020879,2]
[337193230,1725497390750,-7386.86271998,0.0002088,2]
[337193250,1725497431798,-3055.187583,0.0002088,2]
[337193257,1725497431854,-1789.74778109,0.0002088,2]
[337193259,1725497431866,-492.69254794,0.0002088,2]
[337193290,1725497437987,-318.61782581,0.0002088,2]
[337193292,1725497438000,-300.0,0.00020888,2]
[337193294,1725497438010,-155.12387117,0.0002089,2]
[337193297,1725497438024,-844.87612883,0.0002089,2]
[337193299,1725497438035,-250.0,0.00020902,2]
[337193301,1725497438046,-250.0,0.00020957,2]
[337193303,1725497438056,-1641.48,0.0002097,3]
[337193305,1725497438066,-547.16,0.0002097,3]
[337193308,1725497438076,-273.58,0.0002097,3]
[337193310,1725497438086,-278.96842659,0.00020973,2]
[337193312,1725497438096,-500.0,0.00020973,2]
[337193314,1725497438105,-156.8571277,0.00020973,2]
[337193316,1725497438115,-161.11629007,0.00020973,2]
[337193318,1725497438124,-277.79944598,0.00020973,2]
[337193320,1725497438134,-158.63181578,0.00020973,2]
[337193322,1725497438144,-235.31894232,0.00020973,2]
[337193324,1725497438154,-197.12273504,0.00020973,2]
[337193326,1725497438163,-253.5430995,0.00020973,2]
[337193328,1725497438173,-450.16806322,0.00020973,2]
[337193330,1725497438188,-208.0725932,0.00020978,2]
[337193333,1725497438198,-500.0,0.00020979,2]
[337193335,1725497438208,-500.0,0.00020979,2]
[337193337,1725497438217,-183.91554052,0.00020979,2]
[337193339,1725497438227,-500.0,0.00020979,2]
[337193341,1725497438236,-500.0,0.00020979,2]
[337193343,1725497438247,-163.65914452,0.00020979,2]
[337193345,1725497438257,-500.0,0.00020979,2]
[337193346,1725497438268,-500.0,0.00020979,2]
[337193347,1725497438277,-500.0,0.00020979,2]
[337193348,1725497438287,-500.0,0.00020979,2]
[337193349,1725497438297,-500.0,0.00020979,2]
[337193350,1725497438306,-174.38436941,0.00020979,2]
[337193351,1725497438319,-304.26974163,0.00020979,2]
[337193352,1725497438328,-500.0,0.00020979,2]
[337193353,1725497438338,-360.40387943,0.00020979,2]
[337193354,1725497438348,-619.62124558,0.00020979,2]
[337193355,1725497438358,-340.33593494,0.00020979,2]
[337193356,1725497438368,-500.0,0.00020979,2]
[337193357,1725497438377,-500.0,0.00020979,2]
[337193358,1725497438387,-500.0,0.00020979,2]
[337193359,1725497438396,-500.0,0.00020979,2]
[337193360,1725497438406,-500.0,0.00020979,2]
[337193361,1725497438415,-500.0,0.00020979,2]
[337193362,1725497438424,-500.0,0.00020979,2]
[337193363,1725497438434,-500.0,0.00020979,2]
[337193364,1725497438443,-500.0,0.00020979,2]
[337193365,1725497438453,-500.0,0.00020979,2]
[337193366,1725497438471,-500.0,0.00020979,2]
[337193367,1725497438480,-500.0,0.00020979,2]
[337193368,1725497438490,-500.0,0.00020979,2]
[337193369,1725497438499,-500.0,0.00020979,2]
[337193370,1725497438509,-500.0,0.00020979,2]
[337193371,1725497438519,-457.76427926,0.00020979,2]
[337193372,1725497438531,-500.0,0.00020979,2]
[337193373,1725497438541,-500.0,0.00020979,2]
[337193374,1725497438550,-500.0,0.00020979,2]
[337193376,1725497438559,-500.0,0.00020979,2]
[337193378,1725497438570,-500.0,0.00020979,2]
[337193380,1725497438579,-500.0,0.00020979,2]
[337193382,1725497438588,-500.0,0.00020979,2]
[337193384,1725497438598,-500.0,0.00020979,2]
[337193386,1725497438608,-500.0,0.00020979,2]
[337193388,1725497438618,-500.0,0.00020979,2]
[337193390,1725497438628,-343.29606382,0.00020979,2]
[337193392,1725497438637,-500.0,0.00020979,2]
[337193394,1725497438648,-500.0,0.00020979,2]
[337193396,1725497438657,-500.0,0.00020979,2]
[337193399,1725497438666,-500.0,0.00020979,2]
[337193401,1725497438677,-500.0,0.00020979,2]
[337193403,1725497438686,-500.0,0.00020979,2]
[337193405,1725497438696,-500.0,0.00020979,2]
[337193407,1725497438708,-500.0,0.00020979,2]
[337193409,1725497438718,-500.0,0.00020979,2]